fUST/lending_fUST_20260602
["ID","MTS","AMOUNT","RATE_DAILY","PERIOD"]
[423760960,1780397452000,-732.98,0.00016535,2]
[423760959,1780397452000,-500.0,0.00016535,2]
[423760956,1780397452000,-541.75,0.00016535,2]
[423760962,1780397452000,-500.0,0.00016535,2]
[423760954,1780397452000,-737.89,0.00016535,2]
[423760965,1780397452000,-500.0,0.00016535,2]
[423760967,1780397452000,-9379.31,0.00016535,2]
[423760968,1780397452000,-500.0,0.00016535,2]
[423760976,1780397452000,-500.0,0.00016536,2]
[423760970,1780397452000,-500.0,0.00016536,2]
[423760975,1780397452000,-500.0,0.00016536,2]
[423760977,1780397452000,-239.72285797,0.00016536,2]
[423760961,1780397452000,-729.16,0.00016535,2]
[423760973,1780397452000,-500.0,0.00016536,2]
[423760966,1780397452000,-558.84,0.00016535,2]
[423760971,1780397452000,-500.0,0.00016536,2]
[423760974,1780397452000,-500.0,0.00016536,2]
[423760978,1780397452000,-192.76489864,0.00016536,2]
[423760980,1780397452000,-500.0,0.00016536,2]
[423760985,1780397452000,-500.0,0.00016536,2]
[423760979,1780397452000,-1239.46,0.00016536,2]
[423760984,1780397452000,-538.28,0.00016536,2]
[423760981,1780397452000,-500.0,0.00016536,2]
[423760982,1780397452000,-500.0,0.00016536,2]
[423760986,1780397452000,-920.8,0.00016536,2]
[423760927,1780397452000,-500.0,0.00016264,2]
[423760969,1780397452000,-2045.51,0.00016535,2]
[423760963,1780397452000,-2311.55,0.00016535,2]
[423760972,1780397452000,-500.0,0.00016536,2]
[423760955,1780397452000,-500.0,0.00016535,2]
[423760930,1780397452000,-151.0,0.00016265,2]
[423760964,1780397452000,-1728.74,0.00016535,2]
[423760928,1780397452000,-500.0,0.00016265,2]
[423760932,1780397452000,-847.23,0.00016265,2]
[423760931,1780397452000,-500.0,0.00016265,2]
[423760938,1780397452000,-151.0,0.00016405,2]
[423760937,1780397452000,-615.4,0.00016405,2]
[423760934,1780397452000,-487.0,0.00016405,2]
[423760936,1780397452000,-487.0,0.00016405,2]
[423760935,1780397452000,-487.0,0.00016405,2]
[423760940,1780397452000,-206.60969189,0.00016504,2]
[423760950,1780397452000,-831.06,0.00016534,2]
[423760941,1780397452000,-22856.8425917,0.00016505,2]
[423760942,1780397452000,-886.3654462,0.00016505,2]
[423760933,1780397452000,-487.0,0.00016405,2]
[423760939,1780397452000,-151.0,0.000165,2]
[423760958,1780397452000,-500.0,0.00016535,2]
[423760953,1780397452000,-500.0,0.00016535,2]
[423760951,1780397452000,-500.0,0.00016534,2]
[423760952,1780397452000,-673.47,0.00016534,2]
[423760944,1780397452000,-500.0,0.00016534,2]
[423760946,1780397452000,-390.28036842,0.00016534,2]
[423760957,1780397452000,-500.0,0.00016535,2]
[423760948,1780397452000,-500.0,0.00016534,2]
[423760945,1780397452000,-1418.79,0.00016534,2]
[423760949,1780397452000,-500.0,0.00016534,2]
[423760947,1780397452000,-643.93,0.00016534,2]
[423760943,1780397452000,-617.87,0.00016534,2]
[423761034,1780397453000,-617.87,0.00016808,2]
[423761026,1780397453000,-1591.08785705,0.00016767,2]
[423761031,1780397453000,-1034.43839222,0.00016777,2]
[423761024,1780397453000,-176.78753967,0.00016767,2]
[423761020,1780397453000,-575.02085859,0.00016767,2]
[423761021,1780397453000,-1035.03754546,0.00016767,2]
[423761023,1780397453000,-966.57011849,0.00016767,2]
[423761025,1780397453000,-707.15015869,0.00016767,2]
[423761030,1780397453000,-213.49516395,0.00016767,2]
[423761022,1780397453000,-536.98339916,0.00016767,2]
[423761019,1780397453000,-210.15196213,0.00016767,2]
[423761018,1780397453000,-329.68197089,0.00016767,2]
[423761027,1780397453000,-593.42754761,0.00016767,2]
[423761035,1780397453000,-500.0,0.00016808,2]
[423761048,1780397453000,-500.0,0.00016809,2]
[423761036,1780397453000,-1418.79,0.00016808,2]
[423761037,1780397453000,-643.93,0.00016808,2]
[423761041,1780397453000,-500.0,0.00016808,2]
[423761038,1780397453000,-500.0,0.00016808,2]
[423761042,1780397453000,-673.47,0.00016808,2]
[423761040,1780397453000,-831.06,0.00016808,2]
[423761039,1780397453000,-500.0,0.00016808,2]
[423761033,1780397453000,-355.30063582,0.00016784,2]
[423761044,1780397453000,-737.89,0.00016809,2]
[423761043,1780397453000,-500.0,0.00016809,2]
[423761046,1780397453000,-541.75,0.00016809,2]
[423761047,1780397453000,-500.0,0.00016809,2]
[423761045,1780397453000,-500.0,0.00016809,2]
[423761029,1780397453000,-581.87159563,0.00016767,2]
[423761032,1780397453000,-385.69843421,0.00016778,2]
[423761028,1780397453000,-323.26199757,0.00016767,2]
[423760989,1780397453000,-500.0,0.00016538,2]
[423761015,1780397453000,-152.0,0.00016678,2]
[423760990,1780397453000,-500.0,0.00016538,2]
[423760991,1780397453000,-500.0,0.00016538,2]
[423760987,1780397453000,-500.0,0.00016536,2]
[423760988,1780397453000,-829.05,0.00016536,2]
[423760993,1780397453000,-500.0,0.00016538,2]
[423761003,1780397453000,-847.23,0.00016539,2]
[423760992,1780397453000,-500.0,0.00016538,2]
[423760994,1780397453000,-1034.25,0.00016538,2]
[423760998,1780397453000,-500.0,0.00016538,2]
[423760995,1780397453000,-500.0,0.00016538,2]
[423760996,1780397453000,-500.0,0.00016538,2]
[423761001,1780397453000,-500.0,0.00016539,2]
[423761000,1780397453000,-500.0,0.00016539,2]
[423760999,1780397453000,-500.0,0.00016538,2]
[423760997,1780397453000,-518.65,0.00016538,2]
[423761002,1780397453000,-500.0,0.00016539,2]
[423761006,1780397453000,-1000.0,0.00016666,2]
[423761004,1780397453000,-1005.0,0.000166,5]
[423761007,1780397453000,-1000.0,0.00016666,2]
[423761049,1780397453000,-500.0,0.00016809,2]
[423761011,1780397453000,-151.0,0.00016666,2]
[423761008,1780397453000,-1000.0,0.00016666,2]
[423761005,1780397453000,-1000.0,0.00016666,2]
[423761009,1780397453000,-1023.1828902,0.00016666,2]
[423761010,1780397453000,-151.0,0.00016666,2]
[423761012,1780397453000,-151.0,0.00016666,2]
[423761014,1780397453000,-201.16667688,0.00016666,2]
[423761016,1780397453000,-152.0,0.00016719,2]
[423761013,1780397453000,-158.6412051,0.00016666,2]
[423761017,1780397453000,-152.0,0.00016764,2]
[423761050,1780397453000,-732.98,0.00016809,2]
[423761106,1780397453000,-500.0,0.00017082,2]
[423761053,1780397453000,-2311.55,0.00016809,2]
[423761091,1780397453000,-227.12632091,0.00016832,2]
[423761085,1780397453000,-336.51,0.00016812,2]
[423761084,1780397453000,-518.65,0.00016812,2]
[423761089,1780397453000,-500.0,0.00016813,2]
[423761088,1780397453000,-500.0,0.00016813,2]
[423761086,1780397453000,-500.0,0.00016812,2]
[423761083,1780397453000,-500.0,0.00016812,2]
[423761087,1780397453000,-500.0,0.00016813,2]
[423761096,1780397453000,-390.17596721,0.00016832,2]
[423761107,1780397453000,-831.06,0.00017082,2]
[423761109,1780397453000,-673.47,0.00017082,2]
[423761097,1780397453000,-221.88064387,0.00016832,2]
[423761095,1780397453000,-236.08763987,0.00016832,2]
[423761108,1780397453000,-500.0,0.00017082,2]
[423761104,1780397453000,-643.93,0.00017082,2]
[423761103,1780397453000,-1418.79,0.00017082,2]
[423761100,1780397453000,-864.0,0.00017026,2]
[423761098,1780397453000,-212.91834087,0.00016832,2]
[423761099,1780397453000,-332.10705609,0.00016832,2]
[423761105,1780397453000,-500.0,0.00017082,2]
[423761102,1780397453000,-500.0,0.00017082,2]
[423761101,1780397453000,-617.87,0.00017082,2]
[423761111,1780397453000,-737.89,0.00017083,2]
[423761112,1780397453000,-500.0,0.00017083,2]
[423761113,1780397453000,-541.75,0.00017083,2]
[423761115,1780397453000,-500.0,0.00017083,2]
[423761110,1780397453000,-500.0,0.00017083,2]
[423761114,1780397453000,-489.64006373,0.00017083,2]
[423761054,1780397453000,-1728.74,0.00016809,2]
[423761090,1780397453000,-847.23,0.00016813,2]
[423761081,1780397453000,-1034.25,0.00016812,2]
[423761116,1780397453000,-500.0,0.00017083,2]
[423761093,1780397453000,-319.64052094,0.00016832,2]
[423761052,1780397453000,-500.0,0.00016809,2]
[423761051,1780397453000,-729.16,0.00016809,2]
[423761066,1780397453000,-1239.46,0.0001681,2]
[423761055,1780397453000,-500.0,0.00016809,2]
[423761059,1780397453000,-500.0,0.0001681,2]
[423761067,1780397453000,-500.0,0.0001681,2]
[423761056,1780397453000,-9379.31,0.00016809,2]
[423761058,1780397453000,-2045.51,0.00016809,2]
[423761060,1780397453000,-500.0,0.0001681,2]
[423761057,1780397453000,-500.0,0.00016809,2]
[423761064,1780397453000,-500.0,0.0001681,2]
[423761062,1780397453000,-500.0,0.0001681,2]
[423761065,1780397453000,-500.0,0.0001681,2]
[423761063,1780397453000,-500.0,0.0001681,2]
[423761061,1780397453000,-500.0,0.0001681,2]
[423761068,1780397453000,-500.0,0.0001681,2]
[423761092,1780397453000,-183.88916738,0.00016832,2]
[423761070,1780397453000,-2228.94,0.0001681,2]
[423761082,1780397453000,-500.0,0.00016812,2]
[423761079,1780397453000,-500.0,0.00016812,2]
[423761080,1780397453000,-500.0,0.00016812,2]
[423761077,1780397453000,-500.0,0.00016812,2]
[423761078,1780397453000,-500.0,0.00016812,2]
[423761094,1780397453000,-180.16137442,0.00016832,2]
[423761071,1780397453000,-538.28,0.0001681,2]
[423761074,1780397453000,-500.0,0.0001681,2]
[423761073,1780397453000,-920.8,0.0001681,2]
[423761069,1780397453000,-500.0,0.0001681,2]
[423761072,1780397453000,-500.0,0.0001681,2]
[423761075,1780397453000,-829.05,0.0001681,2]
[423761076,1780397453000,-492.92693709,0.00016812,2]
[423761162,1780397454000,-419.61691504,0.00017298,2]
[423761158,1780397454000,-252.4371549,0.00017228,2]
[423761157,1780397454000,-203.9496341,0.00017228,2]
[423761155,1780397454000,-847.23,0.00017087,2]
[423761160,1780397454000,-1322.42369926,0.00017294,2]
[423761152,1780397454000,-500.0,0.00017087,2]
[423761156,1780397454000,-254.96983992,0.00017228,2]
[423761154,1780397454000,-500.0,0.00017087,2]
[423761151,1780397454000,-500.0,0.00017086,2]
[423761149,1780397454000,-500.0,0.00017086,2]
[423761173,1780397454000,-151.41758836,0.00017354,2]
[423761159,1780397454000,-160.0,0.00017269,2]
[423761153,1780397454000,-500.0,0.00017087,2]
[423761178,1780397454000,-443.76128774,0.00017354,2]
[423761174,1780397454000,-278.98676304,0.00017354,2]
[423761161,1780397454000,-578.54765131,0.00017298,2]
[423761167,1780397454000,-256.86866664,0.00017354,2]
[423761169,1780397454000,-151.15421898,0.00017354,2]
[423761170,1780397454000,-360.32274884,0.00017354,2]
[423761165,1780397454000,-454.25264181,0.00017354,2]
[423761168,1780397454000,-479.46078141,0.00017354,2]
[423761163,1780397454000,-532.95095373,0.00017305,2]
[423761164,1780397454000,-275.5376704,0.00017317,2]
[423761171,1780397454000,-472.17527974,0.00017354,2]
[423761166,1780397454000,-367.77833475,0.00017354,2]
[423761175,1780397454000,-216.24053003,0.00017354,2]
[423761177,1780397454000,-209.88315732,0.00017354,2]
[423761150,1780397454000,-518.65,0.00017086,2]
[423761172,1780397454000,-585.26395081,0.00017354,2]
[423761148,1780397454000,-253.31371058,0.00017086,2]
[423761130,1780397454000,-500.0,0.00017084,2]
[423761138,1780397454000,-538.28,0.00017084,2]
[423761179,1780397454000,-425.83668174,0.00017354,2]
[423761122,1780397454000,-562.00875463,0.00017083,2]
[423761121,1780397454000,-1728.74,0.00017083,2]
[423761117,1780397454000,-732.98,0.00017083,2]
[423761119,1780397454000,-500.0,0.00017083,2]
[423761118,1780397454000,-729.16,0.00017083,2]
[423761123,1780397454000,-9379.31,0.00017083,2]
[423761125,1780397454000,-2045.51,0.00017083,2]
[423761126,1780397454000,-500.0,0.00017084,2]
[423761128,1780397454000,-500.0,0.00017084,2]
[423761127,1780397454000,-500.0,0.00017084,2]
[423761129,1780397454000,-500.0,0.00017084,2]
[423761133,1780397454000,-1239.46,0.00017084,2]
[423761140,1780397454000,-920.8,0.00017084,2]
[423761134,1780397454000,-500.0,0.00017084,2]
[423761132,1780397454000,-500.0,0.00017084,2]
[423761131,1780397454000,-500.0,0.00017084,2]
[423761135,1780397454000,-500.0,0.00017084,2]
[423761145,1780397454000,-500.0,0.00017086,2]
[423761142,1780397454000,-829.05,0.00017084,2]
[423761147,1780397454000,-1034.25,0.00017086,2]
[423761144,1780397454000,-500.0,0.00017086,2]
[423761143,1780397454000,-500.0,0.00017086,2]
[423761146,1780397454000,-500.0,0.00017086,2]
[423761136,1780397454000,-500.0,0.00017084,2]
[423761139,1780397454000,-152.86,0.00017084,2]
[423761141,1780397454000,-500.0,0.00017084,2]
[423761137,1780397454000,-2228.94,0.00017084,2]
[423761124,1780397454000,-500.0,0.00017083,2]
[423761183,1780397454000,-1418.79,0.00017356,2]
[423761120,1780397454000,-2311.55,0.00017083,2]
[423761181,1780397454000,-617.87,0.00017356,2]
[423761215,1780397454000,-2228.94,0.00017358,2]
[423761217,1780397454000,-920.8,0.00017358,2]
[423761218,1780397454000,-500.0,0.00017358,2]
[423761216,1780397454000,-538.28,0.00017358,2]
[423761224,1780397454000,-1034.25,0.0001736,2]
[423761223,1780397454000,-500.0,0.0001736,2]
[423761221,1780397454000,-500.0,0.0001736,2]
[423761219,1780397454000,-829.05,0.00017358,2]
[423761220,1780397454000,-500.0,0.0001736,2]
[423761222,1780397454000,-500.0,0.0001736,2]
[423761226,1780397454000,-518.65,0.0001736,2]
[423761228,1780397454000,-500.0,0.00017361,2]
[423761227,1780397454000,-500.0,0.0001736,2]
[423761236,1780397454000,-162.5981733,0.00017621,2]
[423761237,1780397454000,-223.04992599,0.00017621,2]
[423761229,1780397454000,-500.0,0.00017361,2]
[423761225,1780397454000,-304.15515309,0.0001736,2]
[423761232,1780397454000,-2828.60063476,0.00017453,2]
[423761231,1780397454000,-847.23,0.00017361,2]
[423761234,1780397454000,-150.56386439,0.00017574,2]
[423761230,1780397454000,-500.0,0.00017361,2]
[423761235,1780397454000,-151.93154235,0.00017619,2]
[423761233,1780397454000,-153.22520931,0.00017574,2]
[423761238,1780397454000,-1152.0,0.00017622,2]
[423761240,1780397454000,-1718.34687731,0.0001763,2]
[423761241,1780397454000,-617.87,0.0001763,2]
[423761239,1780397454000,-1840.06674749,0.0001763,2]
[423761243,1780397454000,-1418.79,0.0001763,2]
[423761187,1780397454000,-831.06,0.00017356,2]
[423761213,1780397454000,-500.0,0.00017358,2]
[423761214,1780397454000,-500.0,0.00017358,2]
[423761242,1780397454000,-641.48,0.0001763,2]
[423761209,1780397454000,-500.0,0.00017358,2]
[423761176,1780397454000,-190.18978645,0.00017354,2]
[423761180,1780397454000,-498.16058414,0.00017354,2]
[423761188,1780397454000,-500.0,0.00017356,2]
[423761182,1780397454000,-500.0,0.00017356,2]
[423761184,1780397454000,-643.93,0.00017356,2]
[423761185,1780397454000,-500.0,0.00017356,2]
[423761186,1780397454000,-500.0,0.00017356,2]
[423761189,1780397454000,-673.47,0.00017356,2]
[423761212,1780397454000,-500.0,0.00017358,2]
[423761192,1780397454000,-500.0,0.00017357,2]
[423761193,1780397454000,-541.75,0.00017357,2]
[423761198,1780397454000,-500.0,0.00017357,2]
[423761200,1780397454000,-1728.74,0.00017357,2]
[423761201,1780397454000,-9379.31,0.00017357,2]
[423761191,1780397454000,-737.89,0.00017357,2]
[423761196,1780397454000,-732.98,0.00017357,2]
[423761190,1780397454000,-500.0,0.00017357,2]
[423761207,1780397454000,-500.0,0.00017358,2]
[423761205,1780397454000,-500.0,0.00017358,2]
[423761206,1780397454000,-500.0,0.00017358,2]
[423761211,1780397454000,-1239.46,0.00017358,2]
[423761210,1780397454000,-500.0,0.00017358,2]
[423761208,1780397454000,-500.0,0.00017358,2]
[423761204,1780397454000,-500.0,0.00017358,2]
[423761199,1780397454000,-2311.55,0.00017357,2]
[423761197,1780397454000,-729.16,0.00017357,2]
[423761194,1780397454000,-500.0,0.00017357,2]
[423761195,1780397454000,-500.0,0.00017357,2]
[423761202,1780397454000,-500.0,0.00017357,2]
[423761203,1780397454000,-2045.51,0.00017357,2]
[423761281,1780397455000,-500.0,0.00017634,2]
[423761283,1780397455000,-500.0,0.00017634,2]
[423761285,1780397455000,-518.65,0.00017634,2]
[423761286,1780397455000,-500.0,0.00017634,2]
[423761284,1780397455000,-1034.25,0.00017634,2]
[423761279,1780397455000,-829.05,0.00017632,2]
[423761280,1780397455000,-166.16464406,0.00017634,2]
[423761289,1780397455000,-500.0,0.00017635,2]
[423761288,1780397455000,-500.0,0.00017635,2]
[423761277,1780397455000,-920.8,0.00017632,2]
[423761278,1780397455000,-500.0,0.00017632,2]
[423761282,1780397455000,-500.0,0.00017634,2]
[423761287,1780397455000,-500.0,0.00017635,2]
[423761314,1780397455000,-617.87,0.00017904,2]
[423761291,1780397455000,-287.07516078,0.00017645,2]
[423761301,1780397455000,-513.73733327,0.00017702,2]
[423761295,1780397455000,-167.51631072,0.00017652,2]
[423761294,1780397455000,-629.42537257,0.00017645,2]
[423761292,1780397455000,-771.39686842,0.00017645,2]
[423761293,1780397455000,-173.24209485,0.00017645,2]
[423761296,1780397455000,-199.13363081,0.00017664,2]
[423761297,1780397455000,-681.37896272,0.00017702,2]
[423761298,1780397455000,-551.66750213,0.00017702,2]
[423761299,1780397455000,-156.70418999,0.00017702,2]
[423761300,1780397455000,-170.7832131,0.00017702,2]
[423761313,1780397455000,-1616.30998785,0.00017828,2]
[423761303,1780397455000,-639.28104188,0.00017702,2]
[423761273,1780397455000,-500.0,0.00017632,2]
[423761290,1780397455000,-847.23,0.00017635,2]
[423761276,1780397455000,-538.28,0.00017632,2]
[423761259,1780397455000,-2311.55,0.00017631,2]
[423761275,1780397455000,-2228.94,0.00017632,2]
[423761248,1780397455000,-500.0,0.0001763,2]
[423761246,1780397455000,-500.0,0.0001763,2]
[423761247,1780397455000,-831.06,0.0001763,2]
[423761249,1780397455000,-673.47,0.0001763,2]
[423761245,1780397455000,-500.0,0.0001763,2]
[423761250,1780397455000,-500.0,0.00017631,2]
[423761244,1780397455000,-643.93,0.0001763,2]
[423761252,1780397455000,-500.0,0.00017631,2]
[423761263,1780397455000,-2045.51,0.00017631,2]
[423761262,1780397455000,-500.0,0.00017631,2]
[423761251,1780397455000,-737.89,0.00017631,2]
[423761253,1780397455000,-541.75,0.00017631,2]
[423761254,1780397455000,-500.0,0.00017631,2]
[423761274,1780397455000,-500.0,0.00017632,2]
[423761255,1780397455000,-500.0,0.00017631,2]
[423761260,1780397455000,-1728.74,0.00017631,2]
[423761256,1780397455000,-732.98,0.00017631,2]
[423761258,1780397455000,-500.0,0.00017631,2]
[423761261,1780397455000,-9379.31,0.00017631,2]
[423761264,1780397455000,-500.0,0.00017632,2]
[423761266,1780397455000,-500.0,0.00017632,2]
[423761267,1780397455000,-500.0,0.00017632,2]
[423761268,1780397455000,-500.0,0.00017632,2]
[423761270,1780397455000,-500.0,0.00017632,2]
[423761272,1780397455000,-500.0,0.00017632,2]
[423761269,1780397455000,-500.0,0.00017632,2]
[423761271,1780397455000,-1239.46,0.00017632,2]
[423761265,1780397455000,-500.0,0.00017632,2]
[423761257,1780397455000,-729.16,0.00017631,2]
[423761302,1780397455000,-170.49628591,0.00017702,2]
[423761304,1780397455000,-715.82585839,0.00017702,2]
[423761308,1780397455000,-302.83517671,0.00017702,2]
[423761342,1780397455000,-439.86555189,0.00017906,2]
[423761343,1780397455000,-1239.46,0.00017906,2]
[423761346,1780397455000,-500.0,0.00017906,2]
[423761340,1780397455000,-500.0,0.00017906,2]
[423761344,1780397455000,-500.0,0.00017906,2]
[423761348,1780397455000,-538.28,0.00017906,2]
[423761347,1780397455000,-2228.94,0.00017906,2]
[423761349,1780397455000,-920.8,0.00017906,2]
[423761345,1780397455000,-500.0,0.00017906,2]
[423761351,1780397455000,-829.05,0.00017906,2]
[423761361,1780397455000,-799.10130235,0.00018049,2]
[423761362,1780397455000,-894.78232299,0.00018049,2]
[423761354,1780397455000,-500.0,0.00017908,2]
[423761341,1780397455000,-500.0,0.00017906,2]
[423761352,1780397455000,-500.0,0.00017908,2]
[423761353,1780397455000,-500.0,0.00017908,2]
[423761359,1780397455000,-500.0,0.00017909,2]
[423761358,1780397455000,-500.0,0.00017909,2]
[423761350,1780397455000,-450.44,0.00017906,2]
[423761357,1780397455000,-500.0,0.00017908,2]
[423761356,1780397455000,-518.65,0.00017908,2]
[423761360,1780397455000,-847.23,0.00017909,2]
[423761364,1780397455000,-617.87,0.00018178,2]
[423761366,1780397455000,-643.93,0.00018178,2]
[423761368,1780397455000,-831.06,0.00018178,2]
[423761367,1780397455000,-500.0,0.00018178,2]
[423761365,1780397455000,-1418.79,0.00018178,2]
[423761305,1780397455000,-169.82093486,0.00017702,2]
[423761355,1780397455000,-1034.25,0.00017908,2]
[423761339,1780397455000,-500.0,0.00017906,2]
[423761363,1780397455000,-830.26764023,0.00018049,2]
[423761336,1780397455000,-500.0,0.00017906,2]
[423761338,1780397455000,-500.0,0.00017906,2]
[423761306,1780397455000,-540.48412327,0.00017702,2]
[423761311,1780397455000,-159.13041704,0.00017702,2]
[423761310,1780397455000,-232.84628538,0.00017702,2]
[423761309,1780397455000,-419.76631463,0.00017702,2]
[423761312,1780397455000,-664.21411219,0.00017702,2]
[423761316,1780397455000,-643.93,0.00017904,2]
[423761324,1780397455000,-465.68300014,0.00017905,2]
[423761322,1780397455000,-500.0,0.00017905,2]
[423761325,1780397455000,-541.75,0.00017905,2]
[423761327,1780397455000,-500.0,0.00017905,2]
[423761326,1780397455000,-251.20841312,0.00017905,2]
[423761315,1780397455000,-1418.79,0.00017904,2]
[423761323,1780397455000,-737.89,0.00017905,2]
[423761307,1780397455000,-780.35193442,0.00017702,2]
[423761319,1780397455000,-831.06,0.00017904,2]
[423761317,1780397455000,-266.74,0.00017904,2]
[423761334,1780397455000,-500.0,0.00017905,2]
[423761333,1780397455000,-9379.31,0.00017905,2]
[423761331,1780397455000,-2311.55,0.00017905,2]
[423761337,1780397455000,-500.0,0.00017906,2]
[423761330,1780397455000,-500.0,0.00017905,2]
[423761332,1780397455000,-1728.74,0.00017905,2]
[423761335,1780397455000,-2045.51,0.00017905,2]
[423761329,1780397455000,-729.16,0.00017905,2]
[423761318,1780397455000,-500.0,0.00017904,2]
[423761320,1780397455000,-500.0,0.00017904,2]
[423761321,1780397455000,-673.47,0.00017904,2]
[423761328,1780397455000,-732.98,0.00017905,2]
[423761414,1780397456000,-151.0,0.00018187,2]
[423761408,1780397456000,-151.0,0.00018187,2]
[423761409,1780397456000,-162.380719,0.00018187,2]
[423761399,1780397456000,-1034.25,0.00018182,2]
[423761411,1780397456000,-236.08031463,0.00018187,2]
[423761405,1780397456000,-151.0,0.00018187,2]
[423761407,1780397456000,-151.0,0.00018187,2]
[423761397,1780397456000,-500.0,0.00018182,2]
[423761395,1780397456000,-920.8,0.0001818,2]
[423761396,1780397456000,-829.05,0.0001818,2]
[423761412,1780397456000,-153.00849891,0.00018187,2]
[423761410,1780397456000,-151.0,0.00018187,2]
[423761406,1780397456000,-151.0,0.00018187,2]
[423761430,1780397456000,-617.87,0.00018452,2]
[423761413,1780397456000,-151.0,0.00018187,2]
[423761415,1780397456000,-151.0,0.00018187,2]
[423761417,1780397456000,-151.0,0.00018187,2]
[423761419,1780397456000,-151.0,0.00018187,2]
[423761429,1780397456000,-378.27353183,0.00018421,2]
[423761418,1780397456000,-151.0,0.00018187,2]
[423761420,1780397456000,-151.0,0.00018187,2]
[423761424,1780397456000,-151.0,0.00018187,2]
[423761421,1780397456000,-151.0,0.00018187,2]
[423761422,1780397456000,-151.0,0.00018187,2]
[423761423,1780397456000,-151.0,0.00018187,2]
[423761426,1780397456000,-152.33070288,0.00018187,2]
[423761404,1780397456000,-151.0,0.00018187,2]
[423761416,1780397456000,-151.0,0.00018187,2]
[423761401,1780397456000,-244.19930375,0.00018182,2]
[423761376,1780397456000,-729.16,0.00018179,2]
[423761402,1780397456000,-847.23,0.00018183,2]
[423761369,1780397456000,-500.0,0.00018178,2]
[423761372,1780397456000,-737.89,0.00018179,2]
[423761375,1780397456000,-732.98,0.00018179,2]
[423761370,1780397456000,-673.47,0.00018178,2]
[423761373,1780397456000,-541.75,0.00018179,2]
[423761371,1780397456000,-500.0,0.00018179,2]
[423761374,1780397456000,-500.0,0.00018179,2]
[423761377,1780397456000,-500.0,0.00018179,2]
[423761427,1780397456000,-207.17571456,0.00018235,2]
[423761381,1780397456000,-500.0,0.00018179,2]
[423761384,1780397456000,-500.0,0.0001818,2]
[423761383,1780397456000,-500.0,0.0001818,2]
[423761382,1780397456000,-2045.51,0.00018179,2]
[423761398,1780397456000,-500.0,0.00018182,2]
[423761378,1780397456000,-2311.55,0.00018179,2]
[423761379,1780397456000,-1728.74,0.00018179,2]
[423761386,1780397456000,-253.88693813,0.0001818,2]
[423761380,1780397456000,-9379.31,0.00018179,2]
[423761388,1780397456000,-500.0,0.0001818,2]
[423761389,1780397456000,-1239.46,0.0001818,2]
[423761387,1780397456000,-500.0,0.0001818,2]
[423761391,1780397456000,-500.0,0.0001818,2]
[423761390,1780397456000,-500.0,0.0001818,2]
[423761392,1780397456000,-499.3,0.0001818,2]
[423761403,1780397456000,-151.0,0.00018187,2]
[423761393,1780397456000,-2228.94,0.0001818,2]
[423761394,1780397456000,-538.28,0.0001818,2]
[423761400,1780397456000,-518.65,0.00018182,2]
[423761385,1780397456000,-500.0,0.0001818,2]